bitfinex-derivatives/quotes_SOLF0:USTF0_20241211
["timestamp","ask_amount","ask_price","bid_price","bid_amount"]
[1733877601453,2.3522,212.43,212.37,2.3527]
[1733877602351,11.6912715,212.44,212.34,2.74]
[1733877602548,11.6912715,212.44,212.35,2.74]
[1733877602853,11.6912715,212.44,212.29,39.72716405]
[1733877603053,11.6912715,212.47,212.32,11.6912715]
[1733877603646,11.6912715,212.47,212.43,2.3521]
[1733877604647,11.6912715,212.47,212.44,2.352]
[1733877604850,14.0426715,212.5,212.41,2.74]
[1733877605042,11.6912715,212.5,212.41,2.74]
[1733877606646,14.0426715,212.5,212.45,2.3519]
[1733877606847,11.6912715,212.5,212.46,2.74]
[1733877607848,11.6912715,212.5,212.46,5.0917]
[1733877608952,11.6912715,212.5,212.46,2.74]
[1733877609153,11.6912715,212.5,212.47,2.3517]
[1733877609751,1.4472,212.53,212.49,2.3515]
[1733877609948,1.4472,212.53,212.46,2.74]
[1733877610148,11.6912715,212.55,212.46,2.74]
[1733877610549,1.4656,212.58,212.46,2.74]
[1733877610756,11.6912715,212.59,212.47,1.4811]
[1733877610956,11.6912715,212.59,212.47,13.1723715]
[1733877611353,11.6912715,212.63,212.58,2.3505]
[1733877611652,11.6912715,212.63,212.58,2.74]
[1733877612557,14.0411715,212.63,212.58,5.0905]
[1733877612855,11.6912715,212.6,212.58,2.74]
[1733877613052,11.6912715,212.6,212.58,0.66963427]
[1733877613356,11.6912715,212.6,212.54,2.74]
[1733877613548,2.74,212.59,212.16,19.54154254]
[1733877613762,11.6912715,212.43,212.27,11.6912715]
[1733877613951,11.6912715,212.37,212.34,5.56650038]
[1733877614345,11.6912715,212.4,212.36,2.3529]
[1733877614552,11.6912715,212.44,212.34,5.56650038]
[1733877615156,11.6912715,212.44,212.42,2.3522]
[1733877615547,11.6912715,212.47,212.39,2.74]
[1733877615749,11.6912715,212.47,212.4,1.4713]
[1733877616548,11.6912715,212.47,212.4,2.9016]
[1733877616754,11.6912715,212.47,212.45,2.3518]
[1733877617953,11.6912715,212.5,212.4,4.3321]
[1733877618157,11.6912715,212.53,212.41,2.74]
[1733877618760,11.6912715,212.53,212.4,4.3321]
[1733877618761,11.6912715,212.53,212.42,2.74]
[1733877619561,11.6912715,212.53,212.47,2.3516]
[1733877620058,11.6912715,212.53,212.47,2.74]
[1733877620263,1.4722,212.58,212.47,2.74]
[1733877620463,13.1634715,212.58,212.47,2.74]
[1733877621162,11.6912715,212.58,212.47,2.74]
[1733877621365,11.6912715,212.58,212.53,2.351]
[1733877621867,11.6912715,212.58,212.47,2.74]
[1733877622156,11.6912715,212.55,212.41,11.6912715]
[1733877622354,11.6912715,212.55,212.42,2.74]
[1733877622561,11.6912715,212.55,212.48,5.59916649]
[1733877622760,11.6912715,212.55,212.48,8.33916649]
[1733877623663,2.351,212.54,212.48,10.69076649]
[1733877626267,11.6912715,212.55,212.48,8.33916649]
[1733877626468,11.6912715,212.55,212.48,2.74]
[1733877626663,11.6912715,212.49,212.44,5.67821089]
[1733877626869,11.6912715,212.49,212.39,2.72]
[1733877627171,11.6912715,212.43,212.32,4.2686]
[1733877627364,11.6912715,212.43,212.38,2.3527]
[1733877627365,14.0434715,212.43,212.38,2.3527]
[1733877627572,11.6912715,212.4,212.33,2.72]
[1733877628164,2.3527,212.38,212.32,2.3532]
[1733877628368,11.6912715,212.4,212.3,2.72]
[1733877628666,2.3528,212.37,212.32,2.3533]
[1733877628867,11.6912715,212.4,212.32,2.3533]
[1733877629068,11.6912715,212.4,212.32,5.70700563]
[1733877629263,11.6912715,212.4,212.35,2.353]
[1733877629672,7.0282,212.45,212.36,2.3529]
[1733877629673,2.3522,212.43,212.36,2.3529]
[1733877630174,11.6912715,212.44,212.36,2.3529]
[1733877630374,2.3523,212.42,212.36,2.3529]
[1733877631277,2.3524,212.41,212.36,2.3529]
[1733877632267,2.3526,212.39,212.33,2.3531]
[1733877632578,2.3526,212.39,212.33,5.0731]
[1733877632876,2.3526,212.39,212.33,2.3531]
[1733877634174,2.3526,212.39,212.34,2.3531]
[1733877635179,11.6912715,212.41,212.32,8.06030563]
[1733877635180,2.3527,212.38,212.32,8.06030563]
[1733877635374,11.6912715,212.41,212.3,2.72]
[1733877635675,11.6912715,212.41,212.08,11.7798]
[1733877635676,11.6912715,212.38,212.27,4.1095]
[1733877635979,2.72,212.4,212.14,48.94]
[1733877635980,11.6912715,212.35,212.22,11.6912715]
[1733877636278,2.3537,212.29,212.23,2.3543]
[1733877636476,2.3537,212.29,212.23,8.04211592]
[1733877638269,4.3588,212.34,212.21,14.4112715]
[1733877638477,11.6912715,212.38,212.25,11.6912715]
[1733877638775,2.3529,212.37,212.3,2.3535]
[1733877639080,11.6912715,212.33,212.22,5.7674962]
[1733877639379,2.3539,212.28,212.21,2.3545]
[1733877639582,2.8891,212.4,212.22,11.6912715]
[1733877639773,5.79175242,212.37,212.22,11.6912715]
[1733877639971,11.6912715,212.39,212.25,11.6912715]
[1733877640177,11.6912715,212.39,212.26,2.72]
[1733877640474,11.6912715,212.39,212.31,2.3535]
[1733877640779,11.6912715,212.39,212.26,4.1264]
[1733877640983,2.353,212.35,212.29,2.3537]
[1733877641280,11.6912715,212.39,212.26,4.1264]
[1733877641481,2.3531,212.35,212.28,2.3537]
[1733877641682,2.3531,212.35,212.26,4.1264]
[1733877641873,11.6912715,212.39,212.26,4.1264]
[1733877642482,2.3529,212.36,212.31,2.3535]
[1733877642676,1.3851,212.4,212.31,2.72]
[1733877645383,11.6912715,212.38,212.19,5.61435183]
[1733877645683,2.72,212.37,212.22,13.1688715]
[1733877645880,2.72,212.37,212.23,2.72]
[1733877646378,2.3535,212.32,212.26,2.3539]
[1733877646683,11.6912715,212.35,212.23,2.72]
[1733877646883,2.3532,212.33,212.27,2.3538]
[1733877647086,11.6912715,212.35,212.23,2.72]
[1733877648082,2.3532,212.34,212.28,2.3538]
[1733877648284,11.6912715,212.35,212.23,2.72]
[1733877648691,14.0443715,212.35,212.28,2.3537]
[1733877648891,14.0443715,212.35,212.23,2.72]
[1733877649079,11.6912715,212.35,212.26,2.72]
[1733877649485,11.6912715,212.35,212.2,11.6912715]
[1733877649687,11.6912715,212.35,212.24,2.72]
[1733877649884,2.3532,212.33,212.24,2.72]
[1733877650385,11.6912715,212.35,212.24,2.72]
[1733877650589,2.3531,212.34,212.28,2.3537]
[1733877651084,11.6912715,212.35,212.24,2.72]
[1733877651286,14.0443715,212.35,212.29,2.3536]
[1733877651787,2.3531,212.34,212.29,2.3536]
[1733877652288,11.6912715,212.35,212.24,2.72]
[1733877652289,2.3534,212.32,212.24,2.72]
[1733877653588,2.3534,212.32,212.27,2.3539]
[1733877654284,11.6912715,212.35,212.24,2.72]
[1733877654981,14.0442715,212.35,212.29,2.3536]
[1733877655192,14.0442715,212.35,212.24,2.72]
[1733877656382,14.0442715,212.35,212.3,2.3535]
[1733877658092,14.0442715,212.35,212.31,2.3535]
[1733877658385,11.6912715,212.35,212.24,2.72]
[1733877658581,11.6912715,212.35,212.2,2.9889]
[1733877658785,11.6912715,212.35,212.21,2.76]
[1733877658984,2.3536,212.3,212.26,2.3539]
[1733877659181,11.6912715,212.32,212.22,2.76]
[1733877660183,2.3538,212.29,212.24,2.3542]
[1733877660683,1.4626,212.31,212.27,2.3538]
[1733877661281,1.4626,212.31,212.28,2.3538]
[1733877661692,2.3533,212.33,212.28,2.3538]
[1733877661988,11.6912715,212.34,212.28,2.3538]
[1733877662689,11.6912715,212.34,212.31,2.3535]
[1733877662892,1.4626,212.36,212.31,2.3535]
[1733877663189,2.3536,212.31,212.27,2.3539]
[1733877663389,11.6912715,212.34,212.19,7.12072333]
[1733877663589,11.6912715,212.34,212.2,11.6912715]
[1733877664087,2.3534,212.32,212.27,2.3539]
[1733877664586,11.6912715,212.34,212.24,2.76]
[1733877664789,2.76,212.33,212.24,5.1141]
[1733877665092,11.6912715,212.31,212.2,2.76]
[1733877665289,11.6912715,212.31,212.22,2.3545]
[1733877665888,2.354,212.27,212.22,2.3545]
[1733877666679,29.18486641,212.3,212.19,7.12072333]
[1733877666881,191.30433,212.31,212.19,7.12072333]
[1733877667086,1.4712,212.33,212.2,11.6912715]
[1733877667491,30.65606641,212.33,212.26,2.354]
[1733877667887,1.4712,212.33,212.26,2.354]
[1733877668690,2.3535,212.31,212.26,2.354]
[1733877669696,2.3535,212.31,212.23,2.76]
[1733877669895,2.3535,212.31,212.27,2.3539]
[1733877671389,30.68093805,212.33,212.23,2.76]
[1733877671590,29.20973805,212.33,212.23,2.76]
[1733877671789,31.56293805,212.33,212.29,2.3536]
[1733877671994,2.3532,212.33,212.29,2.3536]
[1733877672782,11.6912715,212.34,212.23,2.76]
[1733877672783,2.3534,212.32,212.23,2.76]
[1733877672982,29.22057481,212.33,212.23,2.76]
[1733877673398,11.6912715,212.31,212.23,2.3543]
[1733877673887,2.3539,212.27,212.23,2.3543]
[1733877675286,2.3539,212.27,212.19,4.36072333]
[1733877675287,2.3543,212.24,212.19,6.71552333]
[1733877675695,2.3543,212.24,212.19,2.3548]
[1733877675991,191.30433,212.31,212.18,2.76]
[1733877675992,202.9956015,212.31,212.18,2.76]
[1733877676188,191.30433,212.31,212.18,8.49408081]
[1733877676393,2.3535,212.31,212.26,2.354]
[1733877676596,31.96737674,212.33,212.19,1.3761]
[1733877676796,31.96737674,212.33,212.2,11.6912715]
[1733877676995,2.76,212.33,212.2,13.0560715]
[1733877677192,2.3534,212.32,212.2,13.0560715]
[1733877678598,2.3534,212.32,212.26,2.3539]
[1733877678993,11.6912715,212.34,212.26,2.3539]
[1733877679194,2.3535,212.31,212.26,2.3539]
[1733877680398,2.3534,212.32,212.25,2.76]
[1733877681698,2.3534,212.32,212.27,2.3539]
[1733877681900,14.0444715,212.34,212.25,8.42095749]
[1733877682499,14.0444715,212.34,212.28,2.3537]
[1733877682801,2.3533,212.33,212.28,2.3537]
[1733877683200,7.49764525,212.3,212.28,2.3537]
[1733877683800,192.76583,212.35,212.25,8.42095749]
[1733877684103,7.49764525,212.3,212.25,8.42095749]
[1733877685210,191.30433,212.36,212.25,15.91860274]
[1733877685507,7.49764525,212.34,212.26,1.3758]
[1733877685707,7.49764525,212.34,212.32,2.3533]
[1733877686202,7.49764525,212.34,212.28,2.3537]
[1733877686405,7.49764525,212.29,212.25,5.66095749]
[1733877686606,7.49764525,212.29,212.26,2.66]
[1733877687109,7.49764525,212.31,212.3,2.3535]
[1733877688502,191.30433,212.37,212.28,2.3538]
[1733877688911,7.49764525,212.3,212.28,2.3538]
[1733877689709,7.49764525,212.3,212.29,2.3537]
[1733877690507,7.49764525,212.32,212.3,2.3535]
[1733877691409,7.49764525,212.32,212.26,2.66]
[1733877692115,7.49764525,212.3,212.26,2.66]
[1733877692910,7.49764525,212.3,212.28,2.3538]
[1733877693215,9.85124525,212.3,212.25,5.66095749]
[1733877693406,9.85124525,212.3,212.25,8.32095749]
[1733877693609,9.85124525,212.3,212.26,2.354]
[1733877695014,2.788,212.33,212.29,2.3536]
[1733877695812,7.49764525,212.34,212.3,2.3536]
[1733877697210,7.49764525,212.34,212.31,2.3535]
[1733877697413,198.80197525,212.37,212.31,2.66]
[1733877697607,7.49764525,212.37,212.31,2.66]
[1733877698413,7.49764525,212.37,212.32,2.3533]
[1733877698619,7.49764525,212.37,212.31,2.66]
[1733877698910,7.49764525,212.35,212.31,2.66]
[1733877699218,9.85064525,212.35,212.31,2.66]
[1733877699617,191.30433,212.38,212.31,2.66]
[1733877699817,29.23656001,212.39,212.31,2.66]
[1733877699818,7.49764525,212.36,212.31,2.66]
[1733877700217,7.49764525,212.36,212.32,2.3533]
[1733877701312,195.53193,212.4,212.31,5.0134]
[1733877701510,7.49764525,212.34,212.31,5.0134]
[1733877702113,7.49764525,212.34,212.32,2.3533]
[1733877703215,9.85074525,212.34,212.29,5.0137]
[1733877703416,7.49764525,212.32,212.25,5.66095749]
[1733877703613,9.85104525,212.32,212.26,5.014]
[1733877704621,9.85104525,212.32,212.25,5.66095749]
[1733877704622,9.85124525,212.3,212.25,8.32095749]
[1733877704820,7.49764525,212.28,212.21,7.49764525]
[1733877705119,7.49764525,212.26,212.22,2.66]
[1733877705419,7.49764525,212.26,212.22,2.3545]
[1733877706121,7.49764525,212.26,212.23,2.3543]
[1733877706314,7.49764525,212.26,212.23,7.99211974]
[1733877707010,7.49764525,212.26,212.21,2.66]
[1733877707211,7.49764525,212.26,212.22,2.3545]
[1733877707611,7.49764525,212.26,212.2,2.3547]
[1733877707612,7.49764525,212.24,212.2,2.3547]
[1733877707814,7.49764525,212.24,212.04,4.7129]
[1733877708018,194.10453,212.31,212.05,9.18663444]
[1733877708019,7.49764525,212.22,212.05,9.18663444]
[1733877708220,7.49764525,212.22,212.14,7.49764525]
[1733877708418,7.49764525,212.22,212.16,5.73099252]
[1733877708621,7.49764525,212.22,212.17,4.71160083]
[1733877708818,2.3543,212.24,212.17,2.35660083]
[1733877709114,7.49764525,212.25,212.17,2.35660083]
[1733877709420,9.85174525,212.25,212.17,2.35660083]
[1733877709617,2.3541,212.25,212.18,2.66]
[1733877709921,9.85174525,212.25,212.18,2.66]
[1733877710620,194.10453,212.31,212.18,10.15764525]
[1733877710621,7.49764525,212.27,212.18,10.15764525]
[1733877710821,7.49764525,212.27,212.19,10.15764525]
[1733877712115,7.49764525,212.27,212.21,2.3545]
[1733877713822,2.3539,212.28,212.21,2.3545]
[1733877713823,7.49764525,212.25,212.21,2.3545]
[1733877714623,7.49764525,212.25,212.16,5.57214374]
[1733877714624,7.49764525,212.23,212.17,2.66]
[1733877715218,7.49764525,212.21,212.16,5.57214374]
[1733877715422,7.49764525,212.19,212.14,2.66]
[1733877715722,7.49764525,212.19,212.13,2.66]
[1733877716325,7.49764525,212.19,212.14,2.3553]
[1733877716821,7.49764525,212.17,212.12,2.3556]
[1733877717224,7.49764525,212.15,211.95,14.11]
[1733877717421,7.49764525,212.15,212.08,7.49764525]
[1733877717826,1.4313,212.16,212.08,7.49764525]
[1733877718223,1.4313,212.16,212.12,2.3555]
[1733877718426,1.4313,212.16,212.13,5.70740444]
[1733877718621,191.30433,212.27,212.13,5.70740444]
[1733877718825,318.84055,212.43,212.18,2.3549]
[1733877718826,2.3542,212.24,212.18,2.3549]
[1733877719025,9.85184525,212.24,212.18,2.3549]
[1733877719223,9.85184525,212.24,212.16,10.15764525]
[1733877719224,7.49764525,212.2,212.13,5.70740444]
[1733877719424,1.4313,212.26,212.15,2.3552]
[1733877719627,7.49764525,212.21,212.15,2.3552]
[1733877719824,7.49764525,212.21,212.13,13.20504969]
[1733877719825,1.4313,212.26,212.13,13.20504969]
[1733877720030,7.49764525,212.21,212.13,13.20504969]
[1733877720632,7.49764525,212.21,212.16,2.3551]
[1733877721334,7.49764525,212.21,212.14,2.3552]
[1733877721533,7.49764525,212.21,212.13,13.20504969]
[1733877721736,1.4313,212.26,212.13,13.20504969]
[1733877722030,7.49764525,212.21,212.16,2.355]
[1733877722532,7.49764525,212.21,212.17,2.355]
[1733877722728,7.49764525,212.21,212.13,5.70740444]
[1733877722930,7.49764525,212.19,212.13,5.70740444]
[1733877723134,2.8442,212.25,212.15,2.3552]
[1733877723332,7.49764525,212.21,212.15,2.3552]
[1733877723533,9.85224525,212.21,212.15,2.3552]
[1733877723732,7.49764525,212.19,212.15,2.3552]
[1733877723932,7.49764525,212.19,212.14,2.3553]
[1733877724130,7.49764525,212.19,212.13,13.20504969]
[1733877725623,2.66,212.24,212.13,8.06280444]
[1733877725624,7.49764525,212.17,212.13,8.06280444]
[1733877726127,7.49764525,212.17,212.13,5.70740444]
[1733877727330,7.49764525,212.15,212.13,5.70740444]
[1733877728735,7.49764525,212.17,212.13,5.70740444]
[1733877730236,7.49764525,212.15,212.13,5.70740444]
[1733877732128,7.49764525,212.2,212.13,5.70740444]
[1733877732837,2.3548,212.19,212.15,2.3552]
[1733877733737,9.85234525,212.2,212.15,2.3552]
[1733877733937,7.49764525,212.2,212.15,2.3552]
[1733877734233,2.3548,212.19,212.13,5.70740444]
[1733877734941,2.3548,212.19,212.13,8.06280444]
[1733877735134,7.49764525,212.18,212.13,8.06280444]
[1733877735354,7.49764525,212.16,212.13,5.70740444]
[1733877735639,7.49764525,212.16,212.13,8.06290444]
[1733877737532,7.49764525,212.16,212.13,5.70740444]
[1733877738131,2.66,212.23,212.13,5.70740444]
[1733877738339,2.3549,212.19,212.14,2.3553]
[1733877739335,2.3553,212.15,212.13,5.70740444]
[1733877739543,7.49764525,212.14,212.13,5.70740444]
[1733877740337,193.96433,212.22,212.13,5.70740444]
[1733877740534,7.49764525,212.18,212.15,2.3551]
[1733877741337,2.3547,212.2,212.15,2.3551]
[1733877741542,9.85234525,212.2,212.16,2.3551]
[1733877742734,191.30433,212.24,212.17,10.15764525]
[1733877742938,1.4313,212.26,212.17,10.15764525]
[1733877743137,7.49764525,212.26,212.19,7.49764525]
[1733877744033,7.49764525,212.26,212.22,2.3544]
[1733877744240,7.49764525,212.26,212.18,7.49764525]
[1733877744430,7.49764525,212.26,212.17,2.66]
[1733877744431,2.3536,212.3,212.25,2.3541]
[1733877744635,7.49764525,212.28,212.23,2.86]
[1733877745233,191.30433,212.35,212.23,10.35764525]
[1733877745438,7.49764525,212.3,212.23,10.35764525]
[1733877745837,191.30433,212.37,212.23,10.35764525]
[1733877746131,7.49764525,212.3,212.23,10.35764525]
[1733877747438,7.49764525,212.33,212.26,7.49764525]
[1733877747634,7.49764525,212.31,212.24,7.49764525]
[1733877748240,7.49764525,212.27,212.21,2.86]
[1733877748448,194.16433,212.38,212.2,2.86]
[1733877748449,7.49764525,212.25,212.2,2.86]
[1733877748839,7.49764525,212.26,212.2,2.86]
[1733877749036,7.49764525,212.26,212.2,10.35764525]
[1733877749242,7.49764525,212.26,212.21,2.3545]
[1733877749442,7.49764525,212.26,212.2,10.35764525]
[1733877749838,7.49764525,212.28,212.23,2.3543]
[1733877750443,7.49764525,212.28,212.22,7.49764525]
[1733877750641,382.60866,212.35,212.22,7.49764525]
[1733877750841,7.49764525,212.31,212.22,7.49764525]
[1733877751144,7.49764525,212.31,212.27,2.3539]
[1733877751345,382.60866,212.38,212.27,2.86]
[1733877751649,7.49764525,212.34,212.27,2.86]
[1733877752639,7.49764525,212.34,212.3,2.3535]
[1733877754444,7.49764525,212.32,212.3,2.3535]
[1733877754645,7.49764525,212.32,212.27,2.86]
[1733877754851,7.49764525,212.29,212.27,2.86]
[1733877755050,7.49764525,212.29,212.25,2.3541]
[1733877755251,7.49764525,212.29,212.26,2.86]
[1733877755648,7.49764525,212.29,212.26,2.354]
[1733877755847,7.49764525,212.29,212.26,5.214]
[1733877756049,7.49764525,212.29,212.26,2.354]
[1733877756246,7.49764525,212.29,212.26,5.214]
[1733877757247,7.49764525,212.29,212.26,2.86]
[1733877757554,7.49764525,212.27,212.24,5.64150986]
[1733877757948,7.49764525,212.27,212.2,7.49764525]
[1733877758151,7.49764525,212.25,212.19,2.86]
[1733877758754,7.49764525,212.23,212.19,2.3548]
[1733877758949,7.49764525,212.23,212.19,2.86]
[1733877759155,2.3543,212.24,212.19,2.86]
[1733877759355,11.72480579,212.25,212.19,2.86]
[1733877760453,11.72480579,212.25,212.16,2.3551]
[1733877760657,11.72480579,212.25,212.18,2.3549]
[1733877760858,11.72480579,212.28,212.16,2.86]
[1733877761459,2.3541,212.25,212.2,2.3547]
[1733877761658,2.3541,212.25,212.16,2.86]
[1733877761959,11.72480579,212.28,212.16,2.86]
[1733877763256,2.3542,212.25,212.16,2.86]
[1733877764059,2.3543,212.24,212.19,2.3548]
[1733877764757,2.354,212.27,212.21,2.3546]
[1733877765059,11.72480579,212.28,212.21,2.3546]
[1733877765758,2.3539,212.27,212.22,2.3544]
[1733877765957,11.72480579,212.28,212.16,2.86]
[1733877766459,14.07870579,212.28,212.22,2.3544]
[1733877766960,11.72480579,212.28,212.23,2.3542]
[1733877767552,11.72480579,212.28,212.24,2.3542]
[1733877768260,11.72480579,212.28,212.21,2.86]
[1733877768460,11.72480579,212.28,212.25,2.3541]
[1733877768664,4.2836,212.3,212.21,2.86]
[1733877768965,4.2836,212.3,212.26,2.3539]
[1733877769258,2.854,212.3,212.26,2.3539]
[1733877769463,11.72480579,212.31,212.26,2.3539]
[1733877769464,14.07840579,212.31,212.26,2.3539]
[1733877769764,11.72480579,212.31,212.27,2.3539]
[1733877769957,11.72480579,212.34,212.21,2.86]
[1733877770560,14.07800579,212.34,212.21,2.86]
[1733877770864,4.3596,212.36,212.22,11.72480579]
[1733877771166,2.353,212.35,212.22,13.20570579]
[1733877771463,11.72480579,212.37,212.22,13.20570579]
[1733877771670,11.72480579,212.37,212.25,11.72480579]
[1733877771968,11.72480579,212.37,212.33,2.3532]
[1733877772466,2.3527,212.38,212.33,2.3532]
[1733877773560,2.3527,212.38,212.32,5.2133]
[1733877773763,8.47985927,212.43,212.25,5.52496357]
[1733877774063,11.72480579,212.33,212.25,5.52496357]
[1733877774455,2.3536,212.3,212.25,5.52496357]
[1733877775459,2.3539,212.27,212.23,2.86]
[1733877778567,14.07850579,212.3,212.25,2.3541]
[1733877778770,4.2645,212.32,212.23,2.86]
[1733877779464,11.72480579,212.3,212.23,2.86]
[1733877780666,11.72480579,212.3,212.23,5.2143]
[1733877780667,2.3538,212.28,212.23,5.2143]
[1733877782767,2.3538,212.28,212.23,2.86]
[1733877783866,11.72480579,212.3,212.23,2.86]
[1733877784067,2.354,212.26,212.22,5.75840972]
[1733877784269,220.43380456,212.29,212.22,5.75840972]
[1733877784568,11.72480579,212.3,212.22,5.75840972]
[1733877784569,203.02913579,212.3,212.22,5.75840972]
[1733877784869,2.3538,212.28,212.22,8.11280972]
[1733877785170,2.3538,212.28,212.22,5.75840972]
[1733877785863,11.72480579,212.3,212.22,8.11280972]
[1733877785864,2.3539,212.27,212.22,8.11280972]
[1733877787166,11.72480579,212.3,212.2,2.78]
[1733877787570,11.72480579,212.27,212.2,2.78]
[1733877787872,2.3544,212.23,212.2,2.78]
[1733877788971,11.72480579,212.27,212.2,2.78]
[1733877788972,2.3541,212.25,212.2,2.78]
[1733877789367,11.72480579,212.27,212.2,2.78]
[1733877789567,2.3543,212.24,212.2,2.78]
[1733877791470,11.72480579,212.24,212.11,14.53960579]
[1733877791673,1.4209,212.23,212.12,2.78]
[1733877791870,4.349,212.23,212.12,2.78]
[1733877792066,2.3547,212.2,212.15,2.3552]
[1733877792467,2.3547,212.2,212.15,8.08668289]
[1733877792963,2.3548,212.19,212.13,5.1354]
[1733877793168,2.3548,212.19,212.13,12.64056615]
[1733877793467,2.3548,212.19,212.13,9.86056615]
[1733877793668,2.3548,212.19,212.13,12.64056615]
[1733877795274,2.3548,212.19,212.13,5.1354]
[1733877796177,2.3548,212.19,212.14,2.3553]
[1733877796568,4.349,212.23,212.12,2.78]
[1733877796872,2.3547,212.2,212.14,5.56855859]
[1733877797370,2.3549,212.19,212.14,5.56855859]
[1733877798377,2.355,212.17,212.09,11.72687162]
[1733877798573,2.355,212.17,212.1,2.78]
[1733877798774,2.355,212.17,212.13,5.71814859]
[1733877800178,2.3554,212.14,212.09,11.72687162]
[1733877800471,4.349,212.23,212.1,2.78]
[1733877800673,2.3547,212.2,212.14,2.3553]
[1733877801173,4.349,212.23,212.14,2.3553]
[1733877801368,2.3548,212.19,212.14,2.3553]
[1733877801672,4.349,212.23,212.15,2.3551]
[1733877801872,2.3547,212.2,212.15,2.3551]
[1733877802271,4.349,212.23,212.12,5.60165941]
[1733877802272,11.72687162,212.22,212.12,5.60165941]
[1733877802975,11.72687162,212.22,212.12,7.95715941]
[1733877803371,2.355,212.18,212.12,5.60165941]
[1733877803669,11.72687162,212.19,212.12,5.60165941]
[1733877803866,11.72687162,212.22,212.12,5.60165941]
[1733877804267,2.3553,212.15,212.12,5.60165941]
[1733877804778,11.72687162,212.22,212.12,5.60165941]
[1733877805877,2.355,212.17,212.12,7.95715941]
[1733877806680,2.3549,212.19,212.13,2.3554]
[1733877806975,11.72687162,212.22,212.13,2.3554]
[1733877807479,11.72687162,212.22,212.12,7.95715941]
[1733877807973,11.72687162,212.22,212.12,5.60165941]
[1733877808479,2.3548,212.19,212.12,5.60165941]
[1733877808779,11.72687162,212.22,212.12,5.60165941]
[1733877809476,11.72687162,212.19,212.12,5.60165941]
[1733877809676,11.72687162,212.15,211.8,52.35526533]
[1733877809883,14.62687162,212.19,211.99,5.66326552]
[1733877809884,11.72687162,212.08,211.99,5.66326552]
[1733877810174,11.72687162,212.02,211.89,1.4959]
[1733877810375,29.03749358,212.07,211.85,2.9]
[1733877810376,11.72687162,211.98,211.85,2.9]
[1733877810575,11.72687162,211.98,211.9,5.63385771]
[1733877810777,18.90677162,212.01,211.9,5.63385771]
[1733877810981,191.30433,212.06,211.93,11.72687162]
[1733877811177,14.62687162,212.1,211.98,2.3571]
[1733877811375,11.72687162,212.1,211.98,2.9]
[1733877811583,11.72687162,212.1,211.99,2.357]
[1733877811979,2.356,212.08,211.98,2.9]
[1733877812177,11.72687162,212.1,211.98,2.9]
[1733877812476,11.72687162,212.07,211.98,2.9]
[1733877813582,2.3565,212.04,211.98,2.9]
[1733877813784,5.63761375,212.14,211.98,2.9]
[1733877813785,11.72687162,212.1,211.98,2.9]
[1733877814181,11.72687162,212.07,211.98,2.9]
[1733877814485,11.72687162,212.07,211.95,2.9]
[1733877814778,4.3855,212.06,211.95,2.9]
[1733877814986,11.72687162,212.04,211.93,2.9]
[1733877815986,2.3568,212.02,211.93,2.9]
[1733877816485,2.3565,212.04,211.96,2.3573]
[1733877816980,2.3567,212.02,211.94,2.3575]
[1733877817178,11.72687162,212.04,211.93,2.9]
[1733877818082,2.3567,212.02,211.93,2.9]
[1733877818785,2.3568,212.01,211.93,5.2576]
[1733877818984,11.72687162,212.04,211.93,5.2576]
[1733877819482,11.72687162,212.04,211.93,2.9]
[1733877819483,2.3569,212.0,211.93,2.9]
[1733877819682,11.72687162,212.04,211.94,2.3576]
[1733877819985,11.72687162,212.04,211.93,2.9]
[1733877820176,11.72687162,212.04,211.91,2.8846]
[1733877820378,11.72687162,212.04,211.93,2.3577]
[1733877820683,11.72687162,212.04,211.9,5.63385771]
[1733877820984,11.72687162,211.98,211.9,5.63385771]
[1733877822285,2.3575,211.95,211.9,5.63385771]
[1733877822784,2.3575,211.95,211.85,2.9]
[1733877822785,2.358,211.91,211.85,2.9]
[1733877823285,11.72687162,211.92,211.84,2.9]